bitfinex-derivatives/quotes_SOLF0:USTF0_20250716
["timestamp","ask_amount","ask_price","bid_price","bid_amount"]
[1752689745841,5.0,174.5,174.42,10.27614894]
[1752689746050,3.4,174.45,174.36,10.27614894]
[1752689746246,3.4,174.44,174.4,10.27614894]
[1752689746552,3.4,174.43,174.36,10.27614894]
[1752689746853,3.4,174.43,174.35,10.27614894]
[1752689747047,3.22,174.42,174.35,10.27614894]
[1752689747357,3.22,174.42,174.36,3.09]
[1752689747540,10.27614894,174.48,174.38,3.09]
[1752689747742,3.22,174.44,174.35,3.09]
[1752689748046,3.22,174.44,174.32,3.09]
[1752689748451,5.7325,174.35,174.32,3.09]
[1752689748655,5.7325,174.35,174.33,3.09]
[1752689749042,5.7325,174.35,174.31,10.27614894]
[1752689749043,10.27614894,174.48,174.3,3.09]
[1752689749248,3.22,174.45,174.38,10.27614894]
[1752689749545,5.0,174.5,174.43,3.09]
[1752689749758,3.22,174.47,174.44,3.09]
[1752689750047,5.0,174.5,174.33,191.24]
[1752689750048,3.22,174.46,174.33,191.24]
[1752689750252,3.22,174.46,174.42,3.09]
[1752689750448,3.22,174.46,174.43,3.09]
[1752689750648,5.0,174.5,174.4,3.09]
[1752689750649,3.22,174.49,174.4,3.09]
[1752689751253,5.7294,174.45,174.4,3.09]
[1752689751449,3.22,174.49,174.42,10.27614894]
[1752689751649,3.22,174.49,174.46,3.09]
[1752689752448,3.22,174.49,174.45,10.27614894]
[1752689752651,3.22,174.49,174.46,3.09]
[1752689752951,3.22,174.48,174.43,10.27614894]
[1752689753255,3.22,174.46,174.44,3.09]
[1752689753452,3.22,174.49,174.44,3.09]
[1752689753651,3.22,174.48,174.45,3.09]
[1752689753953,5.0,174.5,174.46,3.09]
[1752689754159,3.22,174.49,174.47,3.09]
[1752689754555,3.22,174.49,174.45,3.09]
[1752689754854,3.22,174.49,174.46,3.09]
[1752689755048,8.9486,174.47,174.44,13.36614894]
[1752689755248,5.7286,174.47,174.46,3.09]
[1752689755457,3.22,174.49,174.46,3.09]
[1752689755655,5.7285,174.47,174.46,3.09]
[1752689755855,3.22,174.49,174.43,13.36614894]
[1752689756150,8.9488,174.46,174.43,3.09]
[1752689756352,3.22,174.48,174.42,10.27614894]
[1752689756555,3.22,174.48,174.46,3.09]
[1752689757147,8.9482,174.48,174.46,3.09]
[1752689757557,8.22,174.5,174.43,3.09]
[1752689757857,5.0,174.5,174.47,3.09]
[1752689758052,5.0,174.5,174.49,3.09]
[1752689758851,10.7277,174.5,174.48,3.09]
[1752689759158,3.22,174.49,174.46,3.09]
[1752689759458,3.22,174.48,174.46,3.09]
[1752689759648,3.22,174.49,174.47,3.09]
[1752689760048,5.0,174.5,174.49,3.09]
[1752689761654,3.22,174.49,174.39,495.18]
[1752689761859,13.49614894,174.49,174.41,3.09]
[1752689762151,3.22,174.48,174.39,13.36614894]
[1752689762955,5.73,174.43,174.38,6.13243559]
[1752689763155,5.0,174.5,174.31,495.08]
[1752689763156,5.0,174.5,174.4,6.13243559]
[1752689763355,5.0,174.5,174.31,495.08]
[1752689763356,3.22,174.49,174.43,3.09]
[1752689763955,3.22,174.44,174.42,3.09]
[1752689764361,3.22,174.47,174.39,9.22243559]
[1752689764859,3.22,174.47,174.4,3.09]
[1752689765058,5.0,174.5,174.45,3.09]
[1752689765364,3.22,174.47,174.45,6.13243559]
[1752689765562,3.22,174.47,174.45,9.22243559]
[1752689765758,8.9485,174.47,174.45,3.09]
[1752689766066,3.22,174.46,174.43,9.22243559]
[1752689766359,5.0,174.5,174.43,9.22243559]
[1752689766570,3.22,174.44,174.42,3.09]
[1752689766757,8.9491,174.46,174.41,6.13243559]
[1752689766962,3.22,174.49,174.41,9.22243559]
[1752689767854,3.22,174.44,174.42,3.09]
[1752689768055,3.22,174.42,174.4,3.09]
[1752689768262,8.9503,174.42,174.4,3.09]
[1752689768458,3.22,174.42,174.4,3.09]
[1752689768960,8.9502,174.42,174.4,3.09]
[1752689769161,3.22,174.46,174.37,3.09]
[1752689769364,5.0,174.5,174.41,3.09]
[1752689769568,5.7301,174.42,174.41,3.09]
[1752689769865,3.22,174.44,174.41,3.09]
[1752689770254,5.73,174.43,174.41,3.09]
[1752689770463,3.22,174.44,174.41,3.09]
[1752689770659,3.22,174.49,174.43,3.09]
[1752689770866,5.0,174.5,174.46,6.13243559]
[1752689771066,5.0,174.5,174.47,3.09]
[1752689771266,8.9481,174.48,174.46,6.13243559]
[1752689771467,8.9481,174.48,174.46,9.22243559]
[1752689771663,3.22,174.49,174.4,3.09]
[1752689771865,3.22,174.49,174.42,6.13243559]
[1752689772062,3.22,174.49,174.42,9.22243559]
[1752689772264,5.7294,174.44,174.43,3.09]
[1752689772571,3.22,174.43,174.4,9.22243559]
[1752689773170,6.13243559,174.49,174.4,9.22243559]
[1752689773171,5.7304,174.41,174.4,3.09]
[1752689774467,3.22,174.41,174.32,3.09]
[1752689774661,3.22,174.41,174.34,9.22243559]
[1752689775176,3.22,174.41,174.34,3.09]
[1752689775568,6.13243559,174.43,174.34,3.09]
[1752689775868,11.4583,174.45,174.36,3.09]
[1752689775869,3.22,174.38,174.36,3.09]
[1752689776268,3.22,174.37,174.36,3.09]
[1752689776466,3.22,174.44,174.35,3.09]
[1752689776671,3.22,174.44,174.38,6.13243559]
[1752689776863,5.7303,174.42,174.3,6.13243559]
[1752689777068,5.7303,174.42,174.41,3.17]
[1752689778174,5.7307,174.41,174.39,6.13243559]
[1752689778376,5.7307,174.41,174.4,3.17]
[1752689779774,6.13243559,174.46,174.36,9.30243559]
[1752689780078,3.12,174.45,174.39,3.17]
[1752689780571,3.12,174.45,174.38,6.13243559]
[1752689780777,3.12,174.45,174.36,3.17]
[1752689780778,5.7311,174.39,174.36,3.17]
[1752689780976,5.7311,174.39,174.38,3.17]
[1752689781973,5.7309,174.4,174.38,6.13243559]
[1752689782175,5.7309,174.4,174.39,3.17]
[1752689783581,5.7314,174.38,174.37,9.30243559]
[1752689783779,3.12,174.39,174.37,3.17]
[1752689784084,5.7315,174.38,174.37,3.17]
[1752689784285,3.12,174.36,174.35,3.17]
[1752689784480,3.12,174.36,174.34,9.30243559]
[1752689784687,5.7323,174.36,174.35,3.17]
[1752689785785,5.7318,174.37,174.34,6.13243559]
[1752689785986,3.12,174.37,174.34,9.30243559]
[1752689786287,5.7323,174.36,174.35,3.17]
[1752689786589,3.12,174.43,174.34,3.17]
[1752689786781,3.12,174.38,174.35,3.17]
[1752689787083,3.12,174.43,174.34,3.17]
[1752689787287,11.4583,174.46,174.36,3.17]
[1752689787288,5.7313,174.39,174.36,3.17]
[1752689787486,3.12,174.42,174.36,3.17]
[1752689787686,17.59073559,174.46,174.37,6.13243559]
[1752689787889,5.7313,174.39,174.38,3.17]
[1752689788190,3.12,174.45,174.35,9.30243559]
[1752689788385,5.732,174.37,174.35,6.13243559]
[1752689788591,5.732,174.37,174.36,3.17]
[1752689789990,5.7324,174.35,174.34,9.30243559]
[1752689790178,8.8524,174.35,174.34,3.17]
[1752689790378,3.12,174.38,174.34,9.30243559]
[1752689790576,5.7317,174.37,174.36,3.17]
[1752689791582,3.12,174.42,174.37,3.17]
[1752689791785,3.12,174.42,174.26,189.9]
[1752689791786,18.70729847,174.44,174.33,6.13243559]
[1752689791988,3.12,174.41,174.33,9.30243559]
[1752689792177,3.12,174.4,174.33,9.30243559]
[1752689792378,3.12,174.4,174.34,3.17]
[1752689792789,3.12,174.33,174.3,3.17]
[1752689792986,3.12,174.33,174.31,3.17]
[1752689793188,3.12,174.38,174.32,3.17]
[1752689793389,5.7331,174.33,174.32,3.17]
[1752689794392,5.7329,174.34,174.33,3.17]
[1752689795887,5.734,174.31,174.29,6.13243559]
[1752689796085,5.734,174.31,174.3,3.17]
[1752689796991,5.7345,174.29,174.28,3.17]
[1752689797292,3.12,174.28,174.25,3.17]
[1752689797485,5.735,174.28,174.27,3.17]
[1752689797689,3.12,174.33,174.27,3.17]
[1752689797893,3.12,174.33,174.31,3.17]
[1752689798094,5.7334,174.32,174.31,3.17]
[1752689798887,3.12,174.36,174.3,3.17]
[1752689799189,3.12,174.35,174.33,9.30243559]
[1752689799392,12.57486288,174.38,174.32,6.13243559]
[1752689799587,3.12,174.37,174.32,6.13243559]
[1752689799894,3.12,174.31,174.26,5.7353]
[1752689800196,3.12,174.34,174.28,6.13243559]
[1752689800393,12.57486288,174.33,174.26,9.30243559]
[1752689800597,3.12,174.32,174.26,9.30243559]
[1752689800798,5.7348,174.28,174.26,9.30243559]
[1752689801001,3.12,174.33,174.27,3.17]
[1752689801197,3.12,174.33,174.31,9.30243559]
[1752689801494,3.12,174.36,174.31,9.30243559]
[1752689801792,3.12,174.35,174.33,9.30243559]
[1752689802203,3.12,174.37,174.32,6.13243559]
[1752689802495,3.12,174.36,174.32,9.30243559]
[1752689802691,5.7331,174.33,174.32,9.30243559]
[1752689803495,8.8531,174.33,174.32,6.13243559]
[1752689805997,8.8531,174.33,174.32,9.30243559]
[1752689806593,5.7331,174.33,174.32,9.30243559]
[1752689807300,8.9931,174.33,174.32,6.13243559]
[1752689807698,3.26,174.32,174.31,6.13243559]
[1752689808007,12.57486288,174.34,174.29,6.13243559]
[1752689808196,8.9941,174.3,174.29,6.13243559]
[1752689808596,12.57486288,174.34,174.27,3.14]
[1752689808801,3.26,174.29,174.28,6.13243559]
[1752689809001,3.26,174.29,174.28,9.27243559]
[1752689809201,3.26,174.31,174.29,3.14]
[1752689810099,5.7341,174.3,174.29,3.14]
[1752689810299,12.57486288,174.34,174.3,3.14]
[1752689810601,12.57486288,174.34,174.3,9.27243559]
[1752689810802,8.9937,174.31,174.3,9.27243559]
[1752689811411,8.9937,174.31,174.3,6.13243559]
[1752689812007,5.7337,174.31,174.3,9.27243559]
[1752689812399,8.9937,174.31,174.3,9.27243559]
[1752689813094,3.26,174.3,174.28,6.13243559]
[1752689813305,3.26,174.3,174.29,3.14]
[1752689813506,5.735,174.27,174.26,9.27243559]
[1752689815700,15.83486288,174.35,174.27,3.14]
[1752689815904,3.26,174.36,174.33,6.13243559]
[1752689816110,5.7327,174.34,174.33,9.27243559]
[1752689816404,12.57486288,174.36,174.32,6.13243559]
[1752689816600,3.26,174.33,174.32,9.27243559]
[1752689816796,8.9933,174.33,174.32,9.27243559]
[1752689817409,5.7333,174.33,174.32,3.14]
[1752689817703,5.7333,174.33,174.32,9.27243559]
[1752689818307,8.9933,174.33,174.32,1.79497972]
[1752689819206,3.26,174.31,174.29,6.13243559]
[1752689819414,12.57486288,174.33,174.29,6.13243559]
[1752689819415,3.26,174.32,174.29,6.13243559]
[1752689819702,12.57486288,174.32,174.29,6.13243559]
[1752689819904,3.26,174.3,174.29,6.13243559]
[1752689820106,8.9941,174.3,174.29,6.13243559]
[1752689820308,8.9941,174.3,174.24,5.7357]
[1752689820309,3.26,174.29,174.27,6.13243559]
[1752689820498,12.57486288,174.29,174.24,6.13243559]
[1752689820812,5.749,174.39,174.24,6.13243559]
[1752689820813,3.26,174.26,174.24,6.13243559]
[1752689821012,3.26,174.25,174.24,6.13243559]
[1752689821510,3.26,174.25,174.23,3.14]
[1752689821709,3.26,174.25,174.24,6.13243559]
[1752689822106,3.26,174.28,174.24,9.27243559]
[1752689822301,3.26,174.27,174.24,6.13243559]
[1752689822605,8.9957,174.25,174.24,6.13243559]
[1752689822810,3.26,174.25,174.22,6.13243559]
[1752689823012,3.26,174.26,174.24,9.27243559]
[1752689823710,8.9954,174.26,174.24,9.27243559]
[1752689824210,8.9942,174.3,174.25,3.14]
[1752689824412,8.9942,174.3,174.29,6.13243559]
[1752689824809,5.7348,174.28,174.27,6.13243559]
[1752689825012,3.26,174.29,174.22,3.14]
[1752689825209,12.57486288,174.28,174.23,6.13243559]
[1752689825511,12.57486288,174.28,174.14,447.86135452]
[1752689825512,3.26,174.27,174.25,9.27243559]
[1752689825912,8.9954,174.26,174.23,3.14]
[1752689826114,3.26,174.26,174.25,6.13243559]
[1752689828016,18.30966288,174.28,174.25,9.27243559]
[1752689828313,18.30966288,174.28,174.2,6.13243559]
[1752689828314,12.57486288,174.3,174.28,3.14]
[1752689828516,3.26,174.29,174.2,245.13243559]
[1752689828813,8.9946,174.29,174.28,6.13243559]
[1752689829920,5.7353,174.27,174.26,6.13243559]
[1752689830107,8.9953,174.27,174.26,6.13243559]
[1752689830807,21.4904045,174.36,174.26,6.13243559]
[1752689831013,3.26,174.34,174.33,6.13243559]
[1752689831610,8.9927,174.34,174.33,6.13243559]
[1752689831810,3.26,174.34,174.31,6.13243559]
[1752689832113,3.26,174.34,174.29,6.13243559]
[1752689832607,5.7339,174.31,174.29,6.13243559]
[1752689832814,3.26,174.3,174.29,6.13243559]
[1752689833512,3.26,174.31,174.29,6.13243559]
[1752689835018,3.26,174.31,174.29,11.86673559]
[1752689835712,3.26,174.3,174.29,6.13243559]
[1752689836020,3.26,174.36,174.29,7.16243559]
[1752689836314,5.733,174.34,174.32,6.13243559]
[1752689836511,3.26,174.33,174.32,6.13243559]
[1752689837612,3.26,174.36,174.33,1.04]
[1752689837815,3.26,174.39,174.31,1.04]
[1752689838018,3.26,174.39,174.33,6.13243559]
[1752689838407,3.26,174.39,174.33,1.35063936]
[1752689838613,3.26,174.37,174.31,6.13243559]
[1752689838807,19.0144045,174.37,174.31,6.13243559]
[1752689839104,3.26,174.36,174.31,6.13243559]
[1752689839310,3.26,174.36,174.28,1.04]
[1752689839517,3.26,174.36,174.29,6.13243559]
[1752689839714,3.26,174.36,174.31,6.13243559]
[1752689840012,5.7328,174.34,174.31,6.13243559]
[1752689840213,3.26,174.33,174.3,6.13243559]
[1752689840413,3.26,174.33,174.26,1.04]
[1752689840614,3.26,174.33,174.3,6.13243559]
[1752689840911,16.10394213,174.32,174.3,6.13243559]
[1752689841214,16.10394213,174.32,174.3,11.86623559]
[1752689841419,3.26,174.34,174.31,1.04]
[1752689841619,3.26,174.34,174.32,6.13243559]
[1752689843112,3.26,174.34,174.32,11.86573559]
[1752689843321,3.26,174.34,174.32,12.90573559]
[1752689843723,3.26,174.34,174.32,7.17243559]
[1752689844021,3.26,174.34,174.32,6.13243559]
[1752689844224,16.10394213,174.35,174.33,5.7328]
[1752689844525,16.10394213,174.35,174.34,6.13243559]
[1752689844721,18.57624213,174.36,174.32,5.7331]
[1752689845021,16.10394213,174.35,174.34,6.13243559]
[1752689845719,3.26,174.34,174.31,5.7336]
[1752689845915,16.10394213,174.34,174.33,6.13243559]
[1752689846116,3.26,174.34,174.33,6.13243559]
[1752689847019,8.9927,174.34,174.33,6.13243559]
[1752689847316,21.83664213,174.34,174.33,6.13243559]
[1752689847917,12.84394213,174.34,174.33,6.13243559]
[1752689848119,3.26,174.36,174.34,5.7325]
[1752689848318,3.26,174.36,174.35,6.13243559]
[1752689848525,3.26,174.37,174.35,6.13243559]
[1752689848826,3.26,174.37,174.36,6.13243559]
[1752689849520,3.26,174.37,174.26,239.0]
[1752689849723,3.26,174.37,174.33,6.13243559]
[1752689850023,3.26,174.37,174.32,6.13243559]
[1752689850226,3.26,174.37,174.36,6.13243559]
[1752689850433,3.26,174.39,174.36,7.17243559]
[1752689850623,3.26,174.39,174.38,6.13243559]
[1752689850818,15.7544045,174.46,174.38,6.13243559]
[1752689851023,15.7544045,174.46,174.4,6.13243559]
[1752689851221,5.7302,174.42,174.36,1.04]
[1752689851423,5.7302,174.42,174.39,6.13243559]
[1752689851723,3.26,174.4,174.39,6.13243559]
[1752689851923,3.26,174.4,174.39,11.86353559]
[1752689852824,3.26,174.4,174.39,6.13243559]
[1752689854126,15.7544045,174.46,174.39,6.13243559]
[1752689854317,15.7544045,174.47,174.39,6.13243559]
[1752689854520,3.26,174.41,174.39,6.13243559]
[1752689854728,3.26,174.4,174.39,6.13243559]
[1752689856128,8.9908,174.4,174.39,6.13243559]
[1752689856323,3.26,174.39,174.37,6.13243559]
[1752689856836,3.26,174.38,174.37,6.13243559]
[1752689857029,3.26,174.37,174.36,4.14097034]
[1752689857234,5.7305,174.41,174.36,9.87307034]
[1752689857428,19.89537484,174.47,174.39,4.14097034]
[1752689857835,5.0,174.5,174.45,7.37097034]
[1752689858029,5.0,174.5,174.27,426.84]
[1752689858225,5.0,174.5,174.49,4.14097034]
[1752689858932,10.7276,174.5,174.49,4.14097034]
[1752689859332,13.9876,174.5,174.49,4.14097034]
[1752689860022,3.26,174.49,174.48,4.14097034]
[1752689860735,5.0,174.5,174.48,4.14097034]
[1752689860927,5.0,174.5,174.47,6.12680571]
[1752689860928,3.26,174.49,174.47,6.12680571]
[1752689861228,3.26,174.49,174.46,6.12680571]
[1752689861423,3.26,174.49,174.42,3.23]
[1752689861424,3.26,174.49,174.44,6.12680571]
[1752689861630,12.79702612,174.49,174.44,6.12680571]
[1752689861936,5.73,174.43,174.42,6.12680571]
[1752689862236,8.99,174.43,174.42,6.12680571]
[1752689862727,8.99,174.43,174.4,3.23]
[1752689862728,8.9904,174.41,174.4,6.12680571]
[1752689862933,3.26,174.39,174.38,6.12680571]
[1752689863132,3.26,174.38,174.36,9.35680571]
[1752689863734,3.26,174.43,174.37,3.23]
[1752689863929,3.26,174.42,174.41,6.12680571]
[1752689864334,8.9904,174.42,174.41,6.12680571]
[1752689866328,3.26,174.39,174.37,6.12680571]
[1752689866540,3.26,174.47,174.37,6.12680571]
[1752689867334,5.731,174.4,174.37,6.12680571]
[1752689867536,5.736,174.48,174.39,9.53680571]
[1752689867739,5.7297,174.44,174.39,15.26790571]
[1752689867941,3.26,174.43,174.41,3.41]
[1752689868436,8.9899,174.43,174.41,3.41]
[1752689869541,5.7301,174.42,174.39,9.53680571]
[1752689869740,3.26,174.41,174.39,9.53680571]
[1752689869940,3.26,174.48,174.31,3.41]
[1752689870245,3.26,174.4,174.38,9.53680571]
[1752689870436,3.26,174.48,174.39,3.41]
[1752689870640,3.26,174.42,174.4,9.53680571]
[1752689872957,3.26,174.41,174.4,6.12680571]
[1752689873352,8.9908,174.41,174.38,6.12680571]
[1752689873561,3.26,174.47,174.39,3.41]
[1752689873951,3.26,174.47,174.38,6.12680571]
[1752689874655,5.7304,174.42,174.38,6.12680571]
[1752689875152,3.26,174.43,174.41,3.41]
[1752689875353,12.79702612,174.48,174.42,9.53680571]
[1752689875553,3.26,174.44,174.42,11.85680571]
[1752689875758,3.26,174.48,174.42,6.12680571]
[1752689875958,3.26,174.48,174.43,6.12680571]
[1752689876154,3.26,174.48,174.43,9.53680571]
[1752689876650,3.26,174.48,174.43,6.12680571]
[1752689876855,3.26,174.44,174.43,6.12680571]
[1752689877058,3.26,174.44,174.43,9.53680571]
[1752689877562,3.26,174.45,174.43,9.53680571]
[1752689877861,12.79702612,174.49,174.44,3.41]
[1752689878050,17.79702612,174.5,174.46,3.41]
[1752689878256,3.26,174.49,174.45,6.12680571]
[1752689878558,8.9888,174.46,174.45,6.12680571]
[1752689879055,3.26,174.46,174.43,6.12680571]
[1752689879258,3.26,174.44,174.43,6.12680571]
[1752689879863,8.9895,174.44,174.43,6.12680571]
[1752689880057,3.26,174.44,174.43,6.12680571]
[1752689880560,3.26,174.42,174.41,6.12680571]
[1752689881362,8.9901,174.42,174.41,9.53680571]
[1752689881562,8.9901,174.42,174.41,3.41]
[1752689881756,3.26,174.42,174.41,3.41]
[1752689881957,3.26,174.42,174.41,9.53680571]
[1752689882556,5.7299,174.43,174.41,9.53680571]
[1752689882768,3.26,174.43,174.41,9.53680571]
[1752689883062,3.26,174.43,174.42,3.41]
[1752689883257,8.9898,174.43,174.42,3.41]
[1752689883560,3.26,174.42,174.31,250.4671]
[1752689883763,3.26,174.41,174.39,9.53680571]
[1752689883959,3.26,174.41,174.4,3.41]
[1752689884263,3.26,174.44,174.38,6.12680571]
[1752689884457,3.26,174.39,174.38,6.12680571]
[1752689884864,8.9912,174.39,174.37,3.41]
[1752689885059,3.26,174.38,174.37,6.12680571]
[1752689885265,12.79702612,174.41,174.33,9.53680571]
[1752689885454,12.79702612,174.4,174.33,9.53680571]
[1752689885854,3.26,174.34,174.32,6.12680571]
[1752689886156,3.26,174.34,174.32,9.53680571]
[1752689886560,3.26,174.36,174.34,3.41]
[1752689886760,6.12680571,174.44,174.35,6.12680571]
[1752689886761,3.26,174.38,174.35,6.12680571]
[1752689886960,3.26,174.37,174.35,9.53680571]
[1752689889261,8.9918,174.37,174.35,9.53680571]
[1752689889457,3.26,174.36,174.31,6.12680571]
[1752689889658,12.79702612,174.35,174.29,6.12680571]
[1752689889859,3.26,174.34,174.28,9.53680571]
[1752689890461,3.26,174.31,174.29,3.41]
[1752689891064,3.26,174.31,174.29,7.55450911]
[1752689891262,3.26,174.31,174.3,3.41]
[1752689891861,3.26,174.31,174.29,4.14450911]
[1752689892063,3.26,174.3,174.29,4.14450911]
[1752689892466,8.9941,174.3,174.29,4.14450911]
[1752689892665,3.26,174.3,174.29,4.14450911]
[1752689893062,3.26,174.3,174.27,6.14037886]
[1752689893266,3.26,174.3,174.29,3.41]
[1752689893466,3.26,174.31,174.3,3.41]
[1752689893863,3.26,174.35,174.28,3.41]
[1752689894068,3.26,174.35,174.3,3.41]
[1752689894273,5.7333,174.33,174.31,3.41]
[1752689894469,3.26,174.33,174.31,3.41]
[1752689894669,3.26,174.32,174.3,3.41]
[1752689894871,3.26,174.31,174.3,3.41]
[1752689895367,3.26,174.31,174.29,6.14037886]
[1752689895574,3.26,174.36,174.28,6.14037886]
[1752689895770,3.26,174.35,174.28,6.14037886]
[1752689895969,3.26,174.35,174.28,9.55037886]
[1752689896164,3.26,174.32,174.3,6.14037886]
[1752689896369,3.26,174.36,174.31,3.41]
[1752689896565,3.26,174.36,174.33,3.41]
[1752689896866,6.14037886,174.44,174.34,6.14037886]
[1752689896867,3.11,174.35,174.34,6.14037886]
[1752689899179,3.11,174.41,174.32,6.14037886]
[1752689899370,3.11,174.4,174.3,3.29]
[1752689899569,3.11,174.4,174.32,6.14037886]
[1752689899570,3.11,174.39,174.32,6.14037886]
[1752689900177,5.7327,174.35,174.32,6.14037886]
[1752689900474,3.11,174.34,174.32,9.43037886]
[1752689900978,9.25037886,174.39,174.3,9.43037886]
[1752689901180,3.11,174.38,174.28,9.43037886]
[1752689901381,3.11,174.36,174.28,9.43037886]
[1752689901573,3.11,174.34,174.26,91.74351174]
[1752689901769,3.11,174.34,174.26,85.60313288]
[1752689901972,3.11,174.31,174.26,85.60313288]
[1752689902174,3.11,174.31,174.24,6.14037886]
[1752689902569,3.11,174.31,174.26,6.14037886]
[1752689902774,3.11,174.31,174.27,3.29]
[1752689903280,3.11,174.28,174.27,3.29]
[1752689903781,3.11,174.34,174.27,3.29]
[1752689903981,3.11,174.34,174.32,3.29]
[1752689904870,8.8429,174.34,174.32,3.29]
[1752689905174,3.11,174.34,174.32,3.29]
[1752689906078,5.7331,174.33,174.32,3.29]
[1752689906777,3.11,174.37,174.33,3.29]
[1752689906971,3.11,174.37,174.36,9.42395368]
[1752689907175,3.11,174.37,174.36,6.13395368]
[1752689908185,8.8418,174.37,174.36,6.13395368]
[1752689908873,8.8418,174.37,174.35,3.29]
[1752689909177,8.8418,174.37,174.35,9.42395368]
[1752689909477,6.13395368,174.42,174.24,3.29]
[1752689909680,3.11,174.39,174.31,6.13395368]
[1752689909982,5.7333,174.33,174.31,6.13395368]
[1752689910184,3.11,174.32,174.31,6.13395368]
[1752689910576,8.8434,174.32,174.3,3.29]
[1752689910774,3.11,174.32,174.3,3.29]
[1752689910980,3.11,174.4,174.3,3.29]
[1752689911380,8.8433,174.33,174.31,3.29]
[1752689911584,8.8433,174.33,174.31,9.42395368]
[1752689911883,8.8433,174.33,174.29,5.7343]
[1752689911884,8.8434,174.32,174.3,6.13395368]
[1752689912080,3.11,174.32,174.3,9.42395368]
[1752689912282,3.11,174.31,174.3,6.13395368]
[1752689912784,5.734,174.31,174.28,6.13395368]
[1752689913084,3.11,174.3,174.28,9.42395368]
[1752689913392,204.53302612,174.41,174.23,239.0]
[1752689913393,3.11,174.34,174.24,6.13395368]
[1752689913877,5.735,174.27,174.23,9.0262]
[1752689914079,8.845,174.27,174.25,9.42395368]
[1752689914983,3.11,174.3,174.27,3.29]
[1752689915181,3.11,174.37,174.29,3.29]
[1752689915489,3.11,174.37,174.32,9.42395368]
[1752689915687,8.8426,174.35,174.33,3.29]
[1752689916581,8.8426,174.35,174.32,6.13395368]
[1752689916887,8.8426,174.35,174.34,3.29]
[1752689917386,5.7329,174.34,174.33,9.42395368]
[1752689918183,8.8425,174.35,174.33,9.42395368]
[1752689918380,8.8425,174.35,174.33,6.13395368]
[1752689918584,8.8425,174.35,174.33,9.42395368]
[1752689918786,5.7325,174.35,174.34,3.29]
[1752689918988,8.8425,174.35,174.34,3.29]
[1752689919487,511.1144045,174.45,174.34,3.29]
[1752689919488,5.7321,174.37,174.34,3.29]
[1752689919684,12.79702612,174.41,174.36,6.13395368]
[1752689919685,3.11,174.4,174.36,6.13395368]
[1752689920187,12.79702612,174.4,174.39,3.29]
[1752689920395,15.90702612,174.42,174.38,2.27246057]
[1752689920694,3.11,174.42,174.41,6.13395368]
[1752689920989,8.8403,174.42,174.41,6.13395368]
[1752689921789,3.11,174.4,174.37,5.7317]
[1752689921993,3.11,174.4,174.39,6.13395368]
[1752689922589,8.8408,174.4,174.39,6.13395368]
[1752689922890,12.79702612,174.44,174.39,6.13395368]
[1752689923095,495.36,174.47,174.43,1.0]
[1752689923096,3.11,174.47,174.43,1.0]
[1752689923296,3.11,174.47,174.46,6.13395368]
[1752689923493,5.0,174.5,174.45,6.13395368]
[1752689923792,8.8389,174.46,174.45,6.13395368]